fUST/lending_fUST_20250809
["ID","MTS","AMOUNT","RATE_DAILY","PERIOD"]
[378084356,1754718665909,-724.97,0.00026027,2]
[378084357,1754718665919,-833.04,0.00026027,2]
[378084358,1754718665929,-551.78,0.00026027,2]
[378084359,1754718665939,-648.22,0.00026027,2]
[378084360,1754718665950,-2838.36,0.00026027,2]
[378084361,1754718665961,-532.22,0.00026027,2]
[378084362,1754718665971,-660.0,0.00026088,2]
[378084363,1754718665982,-168.0,0.00026133,2]
[378084364,1754718666020,-486.1581585,0.00026158,2]
[378084365,1754718666030,-1944.632634,0.00026158,2]
[378084366,1754718666040,-4371.04800307,0.00026158,2]
[378084367,1754718666050,-450.32082717,0.00026158,2]
[378084368,1754718666062,-1799.48202538,0.00026158,2]
[378084369,1754718666072,-173.41362286,0.00026158,2]
[378084370,1754718666082,-692.96083695,0.00026158,2]
[378084371,1754718666093,-564.13761496,0.00026158,2]
[378084372,1754718666102,-168.0,0.00026219,2]
[378084373,1754718666112,-168.0,0.00026229,2]
[378084374,1754718666124,-460.0,0.00026301,2]
[378084375,1754718666134,-338.29370016,0.00026301,2]
[378084376,1754718666143,-610.73,0.00026301,2]
[378084377,1754718666153,-460.0,0.00026301,2]
[378084378,1754718666163,-460.0,0.00026301,2]
[378084379,1754718666172,-460.0,0.00026301,2]
[378084380,1754718666182,-667.01,0.00026301,2]
[378084381,1754718666191,-460.0,0.00026301,2]
[378084382,1754718666201,-460.0,0.00026301,2]
[378084383,1754718666210,-460.0,0.00026301,2]
[378084384,1754718666219,-940.82,0.00026301,2]
[378084385,1754718666229,-861.6,0.00026301,2]
[378084386,1754718666238,-837.05,0.00026301,2]
[378084387,1754718666247,-460.0,0.00026301,2]
[378084388,1754718666256,-1005.24,0.00026301,2]
[378084389,1754718666265,-575.98,0.00026301,2]
[378084390,1754718666275,-1889.53,0.00026301,2]
[378084391,1754718666284,-460.0,0.00026301,2]
[378084392,1754718666294,-545.75,0.00026301,2]
[378084393,1754718666303,-465.5,0.00026301,2]
[378084394,1754718666313,-560.62,0.00026301,2]
[378084395,1754718666322,-460.0,0.00026301,2]
[378084396,1754718666331,-985.45,0.00026301,2]
[378084397,1754718666341,-478.96,0.00026301,2]
[378084398,1754718666351,-1794.59,0.00026301,2]
[378084399,1754718666361,-532.69,0.00026301,2]
[378084400,1754718666372,-1214.97,0.00026301,2]
[378084401,1754718666381,-4089.86,0.00026301,2]
[378084402,1754718666391,-460.0,0.00026301,2]
[378084403,1754718666400,-645.49,0.00026301,2]
[378084404,1754718666409,-460.0,0.00026301,2]
[378084405,1754718666419,-1659.93,0.00026301,2]
[378084406,1754718666429,-1498.54,0.00026301,2]
[378084407,1754718666438,-460.0,0.00026301,2]
[378084408,1754718666447,-460.0,0.00026301,2]
[378084409,1754718666456,-460.0,0.00026301,2]
[378084410,1754718666466,-460.0,0.00026301,2]
[378084411,1754718666475,-460.0,0.00026301,2]
[378084412,1754718666484,-460.0,0.00026301,2]
[378084413,1754718666494,-1028.81,0.00026301,2]
[378084414,1754718666504,-1385.66,0.00026301,2]
[378084415,1754718666516,-769.47,0.00026301,2]
[378084416,1754718666526,-1085.83,0.00026301,2]
[378084417,1754718666536,-1404.07,0.00026301,2]
[378084418,1754718666547,-575.27,0.00026301,2]
[378084419,1754718666556,-480.89,0.00026301,2]
[378084420,1754718666566,-460.0,0.00026301,2]
[378084421,1754718666576,-724.97,0.00026301,2]
[378084422,1754718666586,-833.04,0.00026301,2]
[378084423,1754718666595,-551.78,0.00026301,2]
[378084424,1754718666604,-648.22,0.00026301,2]
[378084425,1754718666614,-2838.36,0.00026301,2]
[378084426,1754718666625,-532.22,0.00026301,2]
[378084427,1754718666635,-168.0,0.00026434,2]
[378084428,1754718666644,-168.0,0.00026495,2]
[378084429,1754718666654,-151.0,0.000265,7]
[378084430,1754718666664,-164.501006,0.000265,7]
[378084431,1754718666673,-151.0,0.000265,7]
[378084432,1754718666683,-151.0,0.000265,7]
[378084433,1754718666693,-1200.0,0.00026516,2]
[378084434,1754718666702,-460.0,0.00026575,2]
[378084435,1754718666711,-610.73,0.00026575,2]
[378084436,1754718666721,-460.0,0.00026575,2]
[378084437,1754718666731,-460.0,0.00026575,2]
[378084438,1754718666740,-386.50373532,0.00026575,2]
[378084439,1754718666750,-667.01,0.00026575,2]
[378084440,1754718666759,-460.0,0.00026575,2]
[378084441,1754718666769,-460.0,0.00026575,2]
[378084442,1754718666778,-460.0,0.00026575,2]
[378084443,1754718666788,-940.82,0.00026575,2]
[378084444,1754718666798,-861.6,0.00026575,2]
[378084445,1754718666807,-837.05,0.00026575,2]
[378084446,1754718666817,-460.0,0.00026575,2]
[378084447,1754718666827,-1005.24,0.00026575,2]
[378084448,1754718666836,-575.98,0.00026575,2]
[378084449,1754718666846,-1889.53,0.00026575,2]
[378084450,1754718666855,-460.0,0.00026575,2]
[378084451,1754718666865,-545.75,0.00026575,2]
[378084452,1754718666877,-465.5,0.00026575,2]
[378084453,1754718666886,-560.62,0.00026575,2]
[378084454,1754718666896,-460.0,0.00026575,2]
[378084455,1754718666905,-985.45,0.00026575,2]
[378084456,1754718666915,-478.96,0.00026575,2]
[378084457,1754718666925,-1794.59,0.00026575,2]
[378084458,1754718666934,-532.69,0.00026575,2]
[378084459,1754718666944,-1214.97,0.00026575,2]
[378084460,1754718666954,-4089.86,0.00026575,2]
[378084461,1754718666963,-460.0,0.00026575,2]
[378084462,1754718666976,-645.49,0.00026575,2]
[378084463,1754718666990,-460.0,0.00026575,2]
[378084464,1754718667000,-1659.93,0.00026575,2]
[378084465,1754718667009,-1498.54,0.00026575,2]
[378084466,1754718667018,-460.0,0.00026575,2]
[378084467,1754718667031,-460.0,0.00026575,2]
[378084468,1754718667041,-460.0,0.00026575,2]
[378084469,1754718667050,-578.38,0.00026575,2]
[378084470,1754718667060,-439.16761962,0.00026575,2]
[378084471,1754718667069,-460.0,0.00026575,2]
[378084472,1754718667078,-1028.81,0.00026575,2]
[378084473,1754718667088,-1385.66,0.00026575,2]
[378084474,1754718667098,-769.47,0.00026575,2]
[378084475,1754718667107,-1085.83,0.00026575,2]
[378084476,1754718667116,-1404.07,0.00026575,2]
[378084477,1754718667128,-575.27,0.00026575,2]
[378084478,1754718667137,-480.89,0.00026575,2]
[378084479,1754718667148,-460.0,0.00026575,2]
[378084480,1754718667157,-724.97,0.00026575,2]
[378084481,1754718667177,-833.04,0.00026575,2]
[378084482,1754718667187,-551.78,0.00026575,2]
[378084483,1754718667197,-648.22,0.00026575,2]
[378084484,1754718667206,-2838.36,0.00026575,2]
[378084485,1754718667216,-532.22,0.00026575,2]
[378084486,1754718667225,-168.0,0.00026586,2]
[378084487,1754718667235,-200.0,0.00026628,15]
[378084488,1754718667244,-200.0,0.00026628,15]
[378084489,1754718667253,-200.0,0.00026628,15]
[378084490,1754718667263,-200.0,0.00026628,15]
[378084491,1754718667272,-200.0,0.00026628,15]
[378084492,1754718667282,-200.0,0.00026628,15]
[378084493,1754718667291,-200.0,0.00026628,15]
[378084494,1754718667301,-200.0,0.00026628,15]
[378084495,1754718667310,-358.0,0.00026628,15]
[378084496,1754718667320,-760.0,0.00026636,2]
[378084497,1754718667329,-328.843378,0.00026676,2]
[378084498,1754718667339,-168.0,0.00026694,2]
[378084499,1754718667348,-971.0,0.00026745,2]
[378084500,1754718667358,-2150.0,0.00026745,2]
[378084501,1754718667367,-636.0,0.00026745,2]
[378084502,1754718667379,-168.0,0.00026828,2]
[378084503,1754718667388,-164.33052138,0.0002684,2]
[378084504,1754718667398,-460.0,0.00026849,2]
[378084505,1754718667407,-610.73,0.00026849,2]
[378084506,1754718667416,-460.0,0.00026849,2]
[378084507,1754718667426,-254.84,0.00026849,2]
[378084508,1754718667436,-667.01,0.00026849,2]
[378084509,1754718667445,-479.23607904,0.00026849,2]
[378084510,1754718667455,-460.0,0.00026849,2]
[378084511,1754718667465,-460.0,0.00026849,2]
[378084512,1754718667475,-940.82,0.00026849,2]
[378084513,1754718667484,-861.6,0.00026849,2]
[378084514,1754718667494,-837.05,0.00026849,2]
[378084515,1754718667504,-460.0,0.00026849,2]
[378084516,1754718667514,-1005.24,0.00026849,2]
[378084517,1754718667524,-575.98,0.00026849,2]
[378084518,1754718667536,-1889.53,0.00026849,2]
[378084519,1754718667547,-545.75,0.00026849,2]
[378084520,1754718667557,-465.5,0.00026849,2]
[378084521,1754718667567,-560.62,0.00026849,2]
[378084522,1754718667576,-460.0,0.00026849,2]
[378084523,1754718667586,-985.45,0.00026849,2]
[378084524,1754718667596,-478.96,0.00026849,2]
[378084525,1754718667606,-1794.59,0.00026849,2]
[378084526,1754718667616,-532.69,0.00026849,2]
[378084527,1754718667627,-1214.97,0.00026849,2]
[378084528,1754718667638,-4089.86,0.00026849,2]
[378084529,1754718667647,-465.86,0.00026849,2]
[378084530,1754718667657,-460.0,0.00026849,2]
[378084531,1754718667667,-645.49,0.00026849,2]
[378084532,1754718667677,-1659.93,0.00026849,2]
[378084533,1754718667687,-1498.54,0.00026849,2]
[378084534,1754718667696,-460.0,0.00026849,2]
[378084535,1754718667706,-460.0,0.00026849,2]
[378084536,1754718667716,-472.74,0.00026849,2]
[378084537,1754718667726,-460.0,0.00026849,2]
[378084538,1754718667736,-1028.81,0.00026849,2]
[378084539,1754718667746,-1385.66,0.00026849,2]
[378084540,1754718667755,-769.47,0.00026849,2]
[378084541,1754718667765,-1085.83,0.00026849,2]
[378084542,1754718667775,-1404.07,0.00026849,2]
[378084543,1754718667785,-575.27,0.00026849,2]
[378084544,1754718667795,-480.89,0.00026849,2]
[378084545,1754718667805,-460.0,0.00026849,2]
[378084546,1754718667814,-724.97,0.00026849,2]
[378084547,1754718667824,-833.04,0.00026849,2]
[378084548,1754718667834,-551.78,0.00026849,2]
[378084549,1754718667843,-648.22,0.00026849,2]
[378084550,1754718667853,-2838.36,0.00026849,2]
[378084551,1754718667863,-532.22,0.00026849,2]
[378084552,1754718667872,-361.05347887,0.00026859,7]
[378084553,1754718668881,-1920.26,0.00021816,2]
[378084554,1754718668891,-175.49,0.00021816,2]
[378084555,1754718669009,-1744.77,0.00021816,2]
[378084556,1754718669020,-1920.26,0.00021816,2]
[378084557,1754718669031,-1920.26,0.00021816,2]
[378084558,1754718669041,-263.71,0.00021816,2]
[378084559,1754718669054,-1656.55,0.00021816,2]
[378084560,1754718669064,-433.90000001,0.00021816,2]
[378084561,1754718669076,-465.79660852,0.00021816,2]
[378084562,1754718676853,263531.01951731,0.00028,30]
[378084563,1754718743763,6869.27495382,0.000199,2]
[378084564,1754718745665,485.0,0.00030137,120]
[378084565,1754718760012,-198.08427593,0.00021506,2]
[378084566,1754718762067,-48.67712975,0.00021506,2]
[378084567,1754718806110,-159.11835374,0.00021505,2]
[378084568,1754718808180,-36.03204109,0.00021505,2]
[378084569,1754718841860,-151.11938259,0.00021497,2]
[378084570,1754718843484,-28.96355023,0.00021497,2]
[378084571,1754718888365,328.254723,0.00013699,2]
[378084572,1754718888678,328.254723,0.00020187,2]
[378084573,1754718890132,-161.93574865,0.00021497,2]
[378084574,1754718892440,-156.2916814,0.00021497,2]
[378084576,1754718893997,-1.07192809,0.00021497,2]
[378084577,1754718929839,1870.63949059,0.000199,2]
[378084578,1754718929868,4769.65963161,0.000199,2]
[378084579,1754718979496,231.162725,0.00020635,2]
[378084581,1754719120000,6624.83478402,0.000199,2]
[378084588,1754719307589,6658.61702858,0.000199,2]
[378084589,1754719412570,3817.1924647,0.00020604,2]
[378084590,1754719464500,475.131099,0.00020597,2]
[378084591,1754719501256,6336.32781876,0.000199,2]
[378084592,1754719549365,348.6010084,0.00020599,2]
[378084594,1754719665374,780.95,0.00027999,30]
[378084595,1754719693819,3038.47343993,0.000199,2]
[378084596,1754719693849,3069.24446845,0.000199,2]
[378084601,1754719729159,221.41563783,0.000189,2]
[378084653,1754719832637,-727.76760405,0.00021506,2]
[378084678,1754719832861,-493.11532957,0.00021506,2]
[378084680,1754719832871,-187.11659778,0.00021555,2]
[378084682,1754719832880,-1008.0,0.00021571,2]
[378084684,1754719832889,-297.0,0.00021572,2]
[378084686,1754719832898,-300.0,0.00021572,2]
[378084688,1754719832908,-300.0,0.00021572,2]
[378084690,1754719832917,-598.14408535,0.00021573,2]
[378084692,1754719832926,-500.0,0.00021573,2]
[378084694,1754719832935,-500.0,0.00021573,2]
[378084696,1754719832944,-500.0,0.00021573,2]
[378084698,1754719832954,-500.0,0.00021573,2]
[378084700,1754719832963,-500.0,0.00021573,2]
[378084702,1754719832972,-500.0,0.00021573,2]
[378084704,1754719832982,-500.0,0.00021573,2]
[378084706,1754719832991,-89.58476057,0.00021573,2]
[378085226,1754719838398,-410.41523943,0.00021573,2]
[378085229,1754719838412,-500.0,0.00021573,2]
[378085231,1754719838422,-500.0,0.00021573,2]
[378085232,1754719838432,-177.55240712,0.00021573,2]
[378085235,1754719838442,-489.87,0.00021597,10]
[378085237,1754719838452,-408.22,0.00021597,10]
[378085239,1754719838461,-1191.3614841,0.00021606,22]
[378085241,1754719838471,-200.29714861,0.00021606,2]
[378085243,1754719838481,-500.0,0.00021606,2]
[378085245,1754719838491,-151.46186466,0.00021606,2]
[378085247,1754719838500,-151.0,0.00021606,2]
[378085249,1754719838510,-151.33826675,0.00021606,2]
[378085251,1754719838522,-500.0,0.00021606,2]
[378085253,1754719838531,-500.0,0.00021606,2]
[378085255,1754719838543,-151.0,0.00021606,2]
[378085257,1754719838553,-151.0,0.00021606,2]
[378085259,1754719838563,-151.27698,0.00021606,2]
[378085261,1754719838574,-155.240556,0.00021606,2]
[378085263,1754719838584,-151.32428984,0.00021606,2]
[378085265,1754719838594,-151.7498476,0.00021606,2]
[378085267,1754719838604,-151.0,0.00021606,2]
[378085269,1754719838613,-151.0,0.00021606,2]
[378085271,1754719838625,-151.0,0.00021606,2]
[378085273,1754719838635,-239.00603671,0.00021606,2]
[378085275,1754719838644,-151.67138925,0.00021606,2]
[378085277,1754719838654,-151.0,0.00021606,2]
[378085279,1754719838663,-151.0,0.00021606,2]
[378085281,1754719838672,-151.0,0.00021606,2]
[378085283,1754719838682,-500.0,0.00021606,2]
[378085285,1754719838691,-151.0,0.00021606,2]
[378085287,1754719838701,-500.0,0.00021606,2]
[378085289,1754719838710,-500.0,0.00021606,2]
[378085291,1754719838720,-500.0,0.00021606,2]
[378085293,1754719838729,-500.0,0.00021606,2]
[378085295,1754719838738,-500.0,0.00021606,2]
[378085298,1754719838747,-500.0,0.00021606,2]
[378085299,1754719838757,-500.0,0.00021606,2]
[378085301,1754719838767,-500.0,0.00021606,2]
[378085303,1754719838776,-500.0,0.00021606,2]
[378085305,1754719838785,-500.0,0.00021606,2]
[378085308,1754719838797,-500.0,0.00021606,2]
[378085310,1754719838807,-235.69415556,0.00021606,2]
[378085312,1754719838816,-500.0,0.00021606,2]
[378085313,1754719838827,-396.78971984,0.00021606,2]
[378085316,1754719838836,-500.0,0.00021606,2]
[378085318,1754719838846,-183.6553605,0.00021606,2]
[378085320,1754719838855,-500.0,0.00021606,2]
[378085322,1754719838866,-500.0,0.00021606,2]
[378085324,1754719838877,-500.0,0.00021606,2]
[378085326,1754719838886,-500.0,0.00021606,2]
[378085328,1754719838896,-500.0,0.00021606,2]
[378085330,1754719838905,-500.0,0.00021606,2]
[378085332,1754719838916,-500.0,0.00021606,2]
[378085334,1754719838925,-500.0,0.00021606,2]
[378085336,1754719838934,-500.0,0.00021606,2]
[378085338,1754719838944,-286.6780907,0.00021606,2]
[378085340,1754719838953,-500.0,0.00021606,2]
[378085342,1754719838962,-623.03234946,0.00021606,2]
[378085344,1754719838971,-500.0,0.00021606,2]
[378085346,1754719838981,-500.0,0.00021606,2]
[378085348,1754719838991,-500.0,0.00021606,2]
[378085350,1754719839000,-500.0,0.00021606,2]
[378085352,1754719839010,-625.798775,0.00021606,2]
[378085354,1754719839020,-500.0,0.00021606,2]
[378085356,1754719839030,-500.0,0.00021606,2]
[378085358,1754719839039,-500.0,0.00021606,2]
[378085360,1754719839049,-500.0,0.00021606,2]
[378085362,1754719839059,-500.0,0.00021606,2]
[378085364,1754719839068,-500.0,0.00021606,2]
[378085366,1754719839077,-500.0,0.00021606,2]
[378085368,1754719839087,-500.0,0.00021606,2]
[378085370,1754719839096,-282.11994264,0.00021606,2]
[378085372,1754719839105,-500.0,0.00021606,2]
[378085374,1754719839115,-500.0,0.00021606,2]
[378085376,1754719839125,-500.0,0.00021606,2]
[378085379,1754719839134,-500.0,0.00021606,2]
[378085381,1754719839143,-500.0,0.00021606,2]
[378085383,1754719839152,-500.0,0.00021606,2]
[378085385,1754719839161,-500.0,0.00021606,2]
[378085387,1754719839171,-500.0,0.00021606,2]
[378085389,1754719839181,-500.0,0.00021606,2]
[378085391,1754719839191,-500.0,0.00021606,2]
[378085393,1754719839201,-500.0,0.00021606,2]
[378085395,1754719839209,-10887.5857332,0.00021607,2]
[378085398,1754719839230,-73711.87716701,0.00021607,2]
[378085400,1754719839239,-6107.71790817,0.00021655,2]
[378085402,1754719839248,-500.0,0.00021673,2]
[378085404,1754719839257,-500.0,0.00021673,2]
[378085406,1754719839266,-500.0,0.00021673,2]
[378085408,1754719839275,-500.0,0.00021673,2]
[378085410,1754719839284,-510.46798977,0.00021673,2]
[378085412,1754719839293,-500.0,0.00021673,2]
[378085414,1754719839303,-500.0,0.00021673,2]
[378085416,1754719839312,-500.0,0.00021673,2]
[378085418,1754719839321,-500.0,0.00021673,2]
[378085420,1754719839330,-500.0,0.00021673,2]
[378085422,1754719839339,-500.0,0.00021673,2]
[378085424,1754719839349,-503.32533777,0.00021673,2]
[378085426,1754719839358,-500.0,0.00021673,2]
[378085428,1754719839367,-500.0,0.00021673,2]
[378085430,1754719839377,-500.0,0.00021673,2]
[378085432,1754719839386,-500.0,0.00021673,2]
[378085434,1754719839395,-500.0,0.00021673,2]
[378085436,1754719839404,-500.0,0.00021673,2]
[378085438,1754719839413,-500.0,0.00021673,2]
[378085440,1754719839423,-500.0,0.00021673,2]
[378085442,1754719839432,-504.94630883,0.00021673,2]
[378085444,1754719839441,-500.0,0.00021673,2]
[378085446,1754719839452,-500.0,0.00021673,2]
[378085448,1754719839461,-422.97070679,0.00021673,2]
[378085450,1754719839470,-890.28,0.00021696,3]
[378085453,1754719839479,-445.14,0.00021696,3]
[378085455,1754719839488,-222.57,0.00021696,3]
[378085457,1754719839498,-667.75,0.00021696,3]
[378085459,1754719839507,-1533.64,0.00021706,2]
[378085461,1754719839520,-1533.64,0.00021706,2]
[378085463,1754719839532,-1533.64,0.00021706,2]
[378085465,1754719839541,-1533.64,0.00021706,2]
[378085467,1754719839550,-1533.64,0.00021706,2]
[378085469,1754719839559,-1533.64,0.00021706,2]
[378085470,1754719839569,-1533.64,0.00021706,2]
[378085473,1754719839578,-1533.64,0.00021706,2]
[378085474,1754719839588,-1533.64,0.00021706,2]
[378085476,1754719839598,-1533.64,0.00021706,2]
[378085479,1754719839607,-1533.64,0.00021706,2]
[378085481,1754719839616,-1533.64,0.00021706,2]
[378085483,1754719839625,-1533.64,0.00021706,2]
[378085485,1754719839635,-1533.64,0.00021706,2]
[378085487,1754719839644,-1533.64,0.00021706,2]
[378085489,1754719839653,-1533.64,0.00021706,2]
[378085491,1754719839662,-1533.64,0.00021706,2]
[378085493,1754719839671,-1533.64,0.00021706,2]
[378085495,1754719839680,-1533.64,0.00021706,2]
[378085497,1754719839689,-1533.64,0.00021772,2]
[378085499,1754719839699,-1533.64,0.00021772,2]
[378085501,1754719839710,-1533.64,0.00021772,2]
[378085503,1754719839721,-1533.64,0.00021772,2]
[378085505,1754719839731,-1533.7984628,0.00021772,2]
[378085507,1754719839740,-187.11659778,0.000218,2]
[378085509,1754719839750,-5138.06807587,0.00021863,2]
[378085511,1754719839759,-562.5194847,0.00021872,2]
[378085513,1754719839768,-562.5194847,0.00021872,2]
[378085515,1754719839777,-562.5194847,0.00021872,2]
[378085518,1754719839795,-562.5194847,0.00021872,2]
[378085520,1754719839808,-562.5194847,0.00021872,2]
[378085522,1754719839819,-562.5194847,0.00021872,2]
[378085524,1754719839828,-562.5194847,0.00021872,2]
[378085527,1754719839838,-562.5194847,0.00021872,2]
[378085529,1754719839847,-562.5194847,0.00021872,2]
[378085532,1754719839857,-562.5194847,0.00021872,2]
[378085535,1754719839866,-562.5194847,0.00021872,2]
[378085537,1754719839875,-562.5194847,0.00021872,2]
[378085539,1754719839885,-500.0,0.00021872,2]
[378085541,1754719839894,-281.96447121,0.00021872,2]
[378085543,1754719839903,-562.5194847,0.00021872,2]
[378085546,1754719839913,-562.5194847,0.00021872,2]
[378085548,1754719839922,-562.5194847,0.00021872,2]
[378085550,1754719839931,-535.08653288,0.00021873,2]
[378085552,1754719839942,-500.0,0.00021873,2]
[378085554,1754719839952,-500.0,0.00021873,2]
[378085556,1754719839962,-572.75123812,0.00021873,2]
[378085558,1754719839972,-500.0,0.00021873,2]
[378085560,1754719839981,-300.81451058,0.00021873,2]
[378085562,1754719839991,-500.0,0.00021873,2]
[378085564,1754719840001,-500.52106574,0.00021873,2]
[378085567,1754719840011,-500.0,0.00021873,2]
[378085570,1754719840020,-501.13655458,0.00021873,2]
[378085573,1754719840030,-500.0,0.00021873,2]
[378085576,1754719840039,-500.0,0.00021873,2]
[378085578,1754719840049,-570.69811089,0.00021873,2]
[378085581,1754719840058,-500.0,0.00021873,2]
[378085584,1754719840068,-500.0,0.00021873,2]
[378085586,1754719840077,-501.60426604,0.00021873,2]
[378085588,1754719840086,-500.0,0.00021873,2]
[378085590,1754719840095,-511.14715494,0.00021873,2]
[378085592,1754719840104,-500.0,0.00021873,2]
[378085593,1754719840113,-500.45341858,0.00021873,2]
[378085595,1754719840123,-500.0,0.00021873,2]
[378085597,1754719840133,-500.0,0.00021873,2]
[378085600,1754719840143,-500.0,0.00021873,2]
[378085602,1754719840153,-500.0,0.00021873,2]
[378085604,1754719840163,-500.0,0.00021873,2]
[378085606,1754719840172,-500.0,0.00021873,2]
[378085608,1754719840181,-500.0,0.00021873,2]
[378085610,1754719840191,-500.0,0.00021873,2]
[378085612,1754719840201,-500.0,0.0002188,2]
[378085614,1754719840211,-151.0,0.0002188,2]
[378085616,1754719840220,-500.0,0.0002188,2]
[378085618,1754719840229,-500.0,0.0002188,2]
[378085620,1754719840239,-151.0,0.0002188,2]
[378085622,1754719840248,-151.0,0.0002188,2]
[378085624,1754719840257,-211.12981513,0.0002188,2]
[378085626,1754719840266,-151.0,0.0002188,2]
[378085628,1754719840276,-151.0,0.0002188,2]
[378085630,1754719840285,-151.0,0.0002188,2]
[378085632,1754719840294,-500.0,0.0002188,2]
[378085634,1754719840304,-151.0,0.0002188,2]
[378085636,1754719840313,-485.61,0.0002189,3]
[378085638,1754719840323,-39744.3747537,0.00021896,2]
[378085640,1754719840332,-491294.08,0.000219,2]
[378085642,1754719840341,-200.0,0.000219,10]
[378085644,1754719840350,-279.520283,0.000219,10]
[378085646,1754719840360,-460.0,0.00021917,2]
[378085648,1754719840369,-460.0,0.00021917,2]
[378085650,1754719840379,-460.0,0.00021917,2]
[378085652,1754719840388,-460.0,0.00021917,2]
[378085654,1754719840397,-460.0,0.00021917,2]
[378085656,1754719840406,-460.0,0.00021917,2]
[378085658,1754719840416,-460.0,0.00021917,2]
[378085660,1754719840425,-460.0,0.00021917,2]
[378085662,1754719840435,-461.95876402,0.00021917,2]
[378085664,1754719840444,-460.0,0.00021917,2]
[378085666,1754719840454,-460.0,0.00021917,2]
[378085668,1754719840463,-460.0,0.00021917,2]
[378085670,1754719840472,-460.0,0.00021917,2]
[378085672,1754719840482,-460.0,0.00021917,2]
[378085674,1754719840492,-460.0,0.00021917,2]
[378085676,1754719840502,-460.0,0.00021917,2]
[378085678,1754719840512,-460.0,0.00021917,2]
[378085680,1754719840525,-460.0,0.00021917,2]
[378085682,1754719840535,-460.0,0.00021917,2]
[378085684,1754719840545,-460.0,0.00021917,2]
[378085686,1754719840554,-460.0,0.00021917,2]
[378085688,1754719840563,-460.0,0.00021917,2]
[378085690,1754719840573,-460.0,0.00021917,2]
[378085711,1754719840755,-460.0,0.00021917,2]
[378085713,1754719840766,-460.0,0.00021917,2]
[378085715,1754719840776,-460.0,0.00021917,2]
[378085717,1754719840786,-460.0,0.00021917,2]
[378085719,1754719840798,-460.0,0.00021917,2]
[378085722,1754719840808,-467.72130027,0.00021917,2]
[378085724,1754719840818,-472.84669239,0.00021917,2]
[378085726,1754719840827,-460.0,0.00021917,2]
[378085728,1754719840837,-460.0,0.00021917,2]
[378085730,1754719840847,-460.0,0.00021917,2]
[378085732,1754719840856,-460.0,0.00021917,2]
[378085734,1754719840865,-460.0,0.00021917,2]
[378085736,1754719840875,-460.0,0.00021917,2]
[378085738,1754719840884,-460.0,0.00021917,2]
[378085740,1754719840894,-460.0,0.00021917,2]
[378085742,1754719840903,-513.98703524,0.00021917,2]
[378085744,1754719840913,-460.0,0.00021917,2]
[378085746,1754719840922,-460.0,0.00021917,2]
[378085748,1754719840932,-460.0,0.00021917,2]
[378085750,1754719840941,-460.0,0.00021917,2]
[378085752,1754719840952,-464.46784404,0.00021917,2]
[378085754,1754719840961,-460.0,0.00021917,2]
[378085756,1754719840970,-461.23222784,0.00021917,2]
[378085758,1754719840980,-460.0,0.00021917,2]
[378085761,1754719840996,-460.0,0.00021917,2]
[378085763,1754719841008,-460.0,0.00021917,2]